{"text_format":"3","workbook":"xlsx","n_sheets":3,"sheets":["Körjournal","Journaldata","Beräkningar"],"not_rendered":{"charts":1,"defined_names":17},"read":"whole","date_system":"1900"}

{"sheet":"Körjournal","index":0,"n_rows":29,"n_cols":5,"rows_kept":29,"merged":[[0,1,1,4]]}
[null,"KÖRJOURNAL"]
{"$rows_empty":9}
[null,null,"ERSÄTTNINGSBARA",null,"SUMMA"]
[null,null,"MIL",null,"ERSÄTTNING"]
[]
[]
[]
[]
[null,null,"2012-05-01",null,"2012-05-10"]
[]
[null,null,"PERIOD",null,"PERIOD"]
[null,null,"START",null,"SLUT"]
[]
[]
[]
[]
[]
[null,null,54,null,{"v":9800,"d":"9,800"}]
[]
[null,null,"ERSÄTTNING",null,"FÖREGÅENDE BRÄNSLE"]
[null,null,"kr per mil",null,"MÄTARSTÄLLNING"]

{"sheet":"Journaldata","index":1,"n_rows":19,"n_cols":15,"rows_kept":19,"merged":[[0,1,1,4]]}
[null,"KÖRJOURNAL"]
[{"$nulls":14}," "]
[]
[]
[null,"DATUM","AKTIVITET","MÄTARE 1","PLATS","MÄTARE 2","DESTINATION","ERSÄTT","LITER","KOSTNAD","MIL","Bränsleförbrukning","kr per mil","ANTECKNINGAR"]
[null,"2012-05-01","Resa",{"v":10123,"d":"10,123"},"Esso – Storgatan",{"v":10130,"d":"10,130"},null,null,15.56,{"v":64.11,"d":"64.11 kr"},{"$f":"Mil","v":7},{"$f":"IF(OR(LEN(Information[[#This Row],[MÄTARE 2]]),Information[[#This Row],[MÄTARE 1]]=\"\"),\"\",IFERROR(Information[[#This Row],[MIL]]/Information[[#This Row],[LITER]],\"\"))","v":""},{"$f":"IF(Information[[#This Row],[Bränsleförbrukning]]=\"\",\"\",100*Information[[#This Row],[KOSTNAD]]/Information[[#This Row],[MIL]])","v":""}]
[null,"2012-05-01","Resa",{"v":10130,"d":"10,130"},"Kontor",{"v":10200,"d":"10,200"},"Lingonstigen","Ja",null,"",{"$f":"Mil","v":70},{"$f":"IF(OR(LEN(Information[[#This Row],[MÄTARE 2]]),Information[[#This Row],[MÄTARE 1]]=\"\"),\"\",IFERROR(Information[[#This Row],[MIL]]/Information[[#This Row],[LITER]],\"\"))","v":""},{"$f":"IF(Information[[#This Row],[Bränsleförbrukning]]=\"\",\"\",100*Information[[#This Row],[KOSTNAD]]/Information[[#This Row],[MIL]])","v":""}]
[null,"2012-05-01","Resa",{"v":10200,"d":"10,200"},"Småstad",{"v":10285,"d":"10,285"},"Kontor","Ja",null,"",{"$f":"Mil","v":85},{"$f":"IF(OR(LEN(Information[[#This Row],[MÄTARE 2]]),Information[[#This Row],[MÄTARE 1]]=\"\"),\"\",IFERROR(Information[[#This Row],[MIL]]/Information[[#This Row],[LITER]],\"\"))","v":""},{"$f":"IF(Information[[#This Row],[Bränsleförbrukning]]=\"\",\"\",100*Information[[#This Row],[KOSTNAD]]/Information[[#This Row],[MIL]])","v":""}]
[null,"2012-05-02","Resa",{"v":10285,"d":"10,285"},"Kontor",{"v":10450,"d":"10,450"},"Vingården","Ja",null,"",{"$f":"Mil","v":165},{"$f":"IF(OR(LEN(Information[[#This Row],[MÄTARE 2]]),Information[[#This Row],[MÄTARE 1]]=\"\"),\"\",IFERROR(Information[[#This Row],[MIL]]/Information[[#This Row],[LITER]],\"\"))","v":""},{"$f":"IF(Information[[#This Row],[Bränsleförbrukning]]=\"\",\"\",100*Information[[#This Row],[KOSTNAD]]/Information[[#This Row],[MIL]])","v":""}]
[null,"2012-05-02","Bränsle",{"v":10450,"d":"10,450"},"Gulf",{"$nulls":3},{"v":11.2,"d":"11.20"},{"v":55.42,"d":"55.42 kr"},{"$f":"Mil","v":650},{"$f":"IF(OR(LEN(Information[[#This Row],[MÄTARE 2]]),Information[[#This Row],[MÄTARE 1]]=\"\"),\"\",IFERROR(Information[[#This Row],[MIL]]/Information[[#This Row],[LITER]],\"\"))","v":{"v":58.03571428571429,"d":"58.0"}},{"$f":"IF(Information[[#This Row],[Bränsleförbrukning]]=\"\",\"\",100*Information[[#This Row],[KOSTNAD]]/Information[[#This Row],[MIL]])","v":{"v":8.526153846153846,"d":"8.5"}}]
[null,"2012-05-02","Resa",{"v":10500,"d":"10,500"},"Vingården",{"v":10518,"d":"10,518"},"Kontor","Ja",null,"",{"$f":"Mil","v":18},{"$f":"IF(OR(LEN(Information[[#This Row],[MÄTARE 2]]),Information[[#This Row],[MÄTARE 1]]=\"\"),\"\",IFERROR(Information[[#This Row],[MIL]]/Information[[#This Row],[LITER]],\"\"))","v":""},{"$f":"IF(Information[[#This Row],[Bränsleförbrukning]]=\"\",\"\",100*Information[[#This Row],[KOSTNAD]]/Information[[#This Row],[MIL]])","v":""}]
[null,"2012-05-03","Resa",{"v":10518,"d":"10,518"},"Kontor",{"v":10745,"d":"10,745"},"Kontor","Ja",null,"",{"$f":"Mil","v":227},{"$f":"IF(OR(LEN(Information[[#This Row],[MÄTARE 2]]),Information[[#This Row],[MÄTARE 1]]=\"\"),\"\",IFERROR(Information[[#This Row],[MIL]]/Information[[#This Row],[LITER]],\"\"))","v":""},{"$f":"IF(Information[[#This Row],[Bränsleförbrukning]]=\"\",\"\",100*Information[[#This Row],[KOSTNAD]]/Information[[#This Row],[MIL]])","v":""}]
[null,"2012-05-04","Bränsle",{"v":10745,"d":"10,745"},"Esso – Storgatan",{"$nulls":3},{"v":16.6,"d":"16.60"},{"v":69.24,"d":"69.24 kr"},{"$f":"Mil","v":295},{"$f":"IF(OR(LEN(Information[[#This Row],[MÄTARE 2]]),Information[[#This Row],[MÄTARE 1]]=\"\"),\"\",IFERROR(Information[[#This Row],[MIL]]/Information[[#This Row],[LITER]],\"\"))","v":{"v":17.771084337349397,"d":"17.8"}},{"$f":"IF(Information[[#This Row],[Bränsleförbrukning]]=\"\",\"\",100*Information[[#This Row],[KOSTNAD]]/Information[[#This Row],[MIL]])","v":{"v":23.471186440677965,"d":"23.5"}}]
[null,"2012-05-04","Resa",{"v":10745,"d":"10,745"},"Kontor",{"v":10800,"d":"10,800"},"Badorten","Ja",null,"",{"$f":"Mil","v":55},{"$f":"IF(OR(LEN(Information[[#This Row],[MÄTARE 2]]),Information[[#This Row],[MÄTARE 1]]=\"\"),\"\",IFERROR(Information[[#This Row],[MIL]]/Information[[#This Row],[LITER]],\"\"))","v":""},{"$f":"IF(Information[[#This Row],[Bränsleförbrukning]]=\"\",\"\",100*Information[[#This Row],[KOSTNAD]]/Information[[#This Row],[MIL]])","v":""}]
[null,"2012-05-04","Resa",{"v":10800,"d":"10,800"},"Badorten",{"v":10875,"d":"10,875"},"Kontor","Ja",null,"",{"$f":"Mil","v":75},{"$f":"IF(OR(LEN(Information[[#This Row],[MÄTARE 2]]),Information[[#This Row],[MÄTARE 1]]=\"\"),\"\",IFERROR(Information[[#This Row],[MIL]]/Information[[#This Row],[LITER]],\"\"))","v":""},{"$f":"IF(Information[[#This Row],[Bränsleförbrukning]]=\"\",\"\",100*Information[[#This Row],[KOSTNAD]]/Information[[#This Row],[MIL]])","v":""}]
[null,"2012-05-07","Resa",{"v":10875,"d":"10,875"},"Kontor",{"v":10921,"d":"10,921"},"Lingonstigen","Ja",null,"",{"$f":"Mil","v":46},{"$f":"IF(OR(LEN(Information[[#This Row],[MÄTARE 2]]),Information[[#This Row],[MÄTARE 1]]=\"\"),\"\",IFERROR(Information[[#This Row],[MIL]]/Information[[#This Row],[LITER]],\"\"))","v":""},{"$f":"IF(Information[[#This Row],[Bränsleförbrukning]]=\"\",\"\",100*Information[[#This Row],[KOSTNAD]]/Information[[#This Row],[MIL]])","v":""}]
[null,"2012-05-07","Resa",{"v":10921,"d":"10,921"},"Småstad",{"v":10969,"d":"10,969"},"Kontor","Ja",null,"",{"$f":"Mil","v":48},{"$f":"IF(OR(LEN(Information[[#This Row],[MÄTARE 2]]),Information[[#This Row],[MÄTARE 1]]=\"\"),\"\",IFERROR(Information[[#This Row],[MIL]]/Information[[#This Row],[LITER]],\"\"))","v":""},{"$f":"IF(Information[[#This Row],[Bränsleförbrukning]]=\"\",\"\",100*Information[[#This Row],[KOSTNAD]]/Information[[#This Row],[MIL]])","v":""}]
[null,"2012-05-09","Resa",{"v":10969,"d":"10,969"},"Kontor",{"v":11000,"d":"11,000"},"Fjällen","Ja",null,"",{"$f":"Mil","v":31},{"$f":"IF(OR(LEN(Information[[#This Row],[MÄTARE 2]]),Information[[#This Row],[MÄTARE 1]]=\"\"),\"\",IFERROR(Information[[#This Row],[MIL]]/Information[[#This Row],[LITER]],\"\"))","v":""},{"$f":"IF(Information[[#This Row],[Bränsleförbrukning]]=\"\",\"\",100*Information[[#This Row],[KOSTNAD]]/Information[[#This Row],[MIL]])","v":""}]
[null,"2012-05-09","Resa",{"v":11000,"d":"11,000"},"Fjällen",{"v":11100,"d":"11,100"},"Hemma","Nej",null,"",{"$f":"Mil","v":100},{"$f":"IF(OR(LEN(Information[[#This Row],[MÄTARE 2]]),Information[[#This Row],[MÄTARE 1]]=\"\"),\"\",IFERROR(Information[[#This Row],[MIL]]/Information[[#This Row],[LITER]],\"\"))","v":""},{"$f":"IF(Information[[#This Row],[Bränsleförbrukning]]=\"\",\"\",100*Information[[#This Row],[KOSTNAD]]/Information[[#This Row],[MIL]])","v":""}]

{"sheet":"Beräkningar","index":2,"n_rows":69,"n_cols":13,"rows_kept":69,"hidden":true}
["*** Det här bladet ska vara dolt ***"]
[]
[]
[]
[]
[{"$nulls":8},{"$f":"OFFSET(I9,,Andra_axel=\"Bränsle_kostnad\")","v":"kr per mil"}]
[{"$nulls":12},2]
[{"$nulls":7},"Resa","Bränsle","Bränsle",null,"Andra axeln:  ",{"$f":"REPT(\"MPG\",M7=1)&REPT(\"Bränsle_kostnad\",M7=2)","v":"Bränsle_kostnad"}]
[{"$nulls":7},"Körda mil","Bränsleförbrukning","kr per mil"]
[null,null,"Antal mil som berättigar till ersättning:  ",{"$f":"SUMIFS(Information[MIL],Information[ERSÄTT],\"ja\",Information[DATUM],\">=\"&periodStart,Information[DATUM],\"<=\"&Periodslut)","v":820},null,1,{"$f":"periodStart","v":"2012-05-01"},{"$f":"SUMIFS(Information[MIL],Information[DATUM],G10,Information[AKTIVITET],$H$8)","v":162},{"$f":"IFERROR(AVERAGEIFS(Information[Bränsleförbrukning],Information[DATUM],G10,Information[AKTIVITET],$I$8),NA())","v":{"$error":"#N/A"}},{"$f":"IFERROR(AVERAGEIFS(Information[kr per mil],Information[DATUM],G10,Information[AKTIVITET],$J$8),NA())","v":{"$error":"#N/A"}}]
[null,null,"Summa ersättning:  ",{"$f":"D10*Ersättning_per_mil/100","v":{"v":442.8,"d":"442.80 kr"}},null,2,{"$f":"G10+1","v":"2012-05-02"},{"$f":"SUMIFS(Information[MIL],Information[DATUM],G11,Information[AKTIVITET],$H$8)","v":183},{"$f":"IFERROR(AVERAGEIFS(Information[Bränsleförbrukning],Information[DATUM],G11,Information[AKTIVITET],$I$8),NA())","v":{"v":58.03571428571429,"d":"58.0"}},{"$f":"IFERROR(AVERAGEIFS(Information[kr per mil],Information[DATUM],G11,Information[AKTIVITET],$J$8),NA())","v":{"v":8.526153846153846,"d":"8.5"}}]
[{"$nulls":5},3,"2012-05-03",{"$f":"SUMIFS(Information[MIL],Information[DATUM],G12,Information[AKTIVITET],$H$8)","v":227},{"$f":"IFERROR(AVERAGEIFS(Information[Bränsleförbrukning],Information[DATUM],G12,Information[AKTIVITET],$I$8),NA())","v":{"$error":"#N/A"}},{"$f":"IFERROR(AVERAGEIFS(Information[kr per mil],Information[DATUM],G12,Information[AKTIVITET],$J$8),NA())","v":{"$error":"#N/A"}}]
[{"$nulls":5},4,"2012-05-04",{"$f":"SUMIFS(Information[MIL],Information[DATUM],G13,Information[AKTIVITET],$H$8)","v":130},{"$f":"IFERROR(AVERAGEIFS(Information[Bränsleförbrukning],Information[DATUM],G13,Information[AKTIVITET],$I$8),NA())","v":{"v":17.771084337349397,"d":"17.8"}},{"$f":"IFERROR(AVERAGEIFS(Information[kr per mil],Information[DATUM],G13,Information[AKTIVITET],$J$8),NA())","v":{"v":23.471186440677965,"d":"23.5"}}]
[{"$nulls":5},5,"2012-05-05",{"$f":"SUMIFS(Information[MIL],Information[DATUM],G14,Information[AKTIVITET],$H$8)","v":0},{"$f":"IFERROR(AVERAGEIFS(Information[Bränsleförbrukning],Information[DATUM],G14,Information[AKTIVITET],$I$8),NA())","v":{"$error":"#N/A"}},{"$f":"IFERROR(AVERAGEIFS(Information[kr per mil],Information[DATUM],G14,Information[AKTIVITET],$J$8),NA())","v":{"$error":"#N/A"}}]
[{"$nulls":5},6,"2012-05-06",{"$f":"SUMIFS(Information[MIL],Information[DATUM],G15,Information[AKTIVITET],$H$8)","v":0},{"$f":"IFERROR(AVERAGEIFS(Information[Bränsleförbrukning],Information[DATUM],G15,Information[AKTIVITET],$I$8),NA())","v":{"$error":"#N/A"}},{"$f":"IFERROR(AVERAGEIFS(Information[kr per mil],Information[DATUM],G15,Information[AKTIVITET],$J$8),NA())","v":{"$error":"#N/A"}}]
[{"$nulls":5},7,"2012-05-07",{"$f":"SUMIFS(Information[MIL],Information[DATUM],G16,Information[AKTIVITET],$H$8)","v":94},{"$f":"IFERROR(AVERAGEIFS(Information[Bränsleförbrukning],Information[DATUM],G16,Information[AKTIVITET],$I$8),NA())","v":{"$error":"#N/A"}},{"$f":"IFERROR(AVERAGEIFS(Information[kr per mil],Information[DATUM],G16,Information[AKTIVITET],$J$8),NA())","v":{"$error":"#N/A"}}]
[{"$nulls":5},8,"2012-05-08",{"$f":"SUMIFS(Information[MIL],Information[DATUM],G17,Information[AKTIVITET],$H$8)","v":0},{"$f":"IFERROR(AVERAGEIFS(Information[Bränsleförbrukning],Information[DATUM],G17,Information[AKTIVITET],$I$8),NA())","v":{"$error":"#N/A"}},{"$f":"IFERROR(AVERAGEIFS(Information[kr per mil],Information[DATUM],G17,Information[AKTIVITET],$J$8),NA())","v":{"$error":"#N/A"}}]
[{"$nulls":5},9,"2012-05-09",{"$f":"SUMIFS(Information[MIL],Information[DATUM],G18,Information[AKTIVITET],$H$8)","v":131},{"$f":"IFERROR(AVERAGEIFS(Information[Bränsleförbrukning],Information[DATUM],G18,Information[AKTIVITET],$I$8),NA())","v":{"$error":"#N/A"}},{"$f":"IFERROR(AVERAGEIFS(Information[kr per mil],Information[DATUM],G18,Information[AKTIVITET],$J$8),NA())","v":{"$error":"#N/A"}}]
[{"$nulls":5},10,"2012-05-10",{"$f":"SUMIFS(Information[MIL],Information[DATUM],G19,Information[AKTIVITET],$H$8)","v":0},{"$f":"IFERROR(AVERAGEIFS(Information[Bränsleförbrukning],Information[DATUM],G19,Information[AKTIVITET],$I$8),NA())","v":{"$error":"#N/A"}},{"$f":"IFERROR(AVERAGEIFS(Information[kr per mil],Information[DATUM],G19,Information[AKTIVITET],$J$8),NA())","v":{"$error":"#N/A"}}]
[{"$nulls":5},11,"2012-05-11",{"$f":"SUMIFS(Information[MIL],Information[DATUM],G20,Information[AKTIVITET],$H$8)","v":0},{"$f":"IFERROR(AVERAGEIFS(Information[Bränsleförbrukning],Information[DATUM],G20,Information[AKTIVITET],$I$8),NA())","v":{"$error":"#N/A"}},{"$f":"IFERROR(AVERAGEIFS(Information[kr per mil],Information[DATUM],G20,Information[AKTIVITET],$J$8),NA())","v":{"$error":"#N/A"}}]
[{"$nulls":5},12,"2012-05-12",{"$f":"SUMIFS(Information[MIL],Information[DATUM],G21,Information[AKTIVITET],$H$8)","v":0},{"$f":"IFERROR(AVERAGEIFS(Information[Bränsleförbrukning],Information[DATUM],G21,Information[AKTIVITET],$I$8),NA())","v":{"$error":"#N/A"}},{"$f":"IFERROR(AVERAGEIFS(Information[kr per mil],Information[DATUM],G21,Information[AKTIVITET],$J$8),NA())","v":{"$error":"#N/A"}}]
[{"$nulls":5},13,"2012-05-13",{"$f":"SUMIFS(Information[MIL],Information[DATUM],G22,Information[AKTIVITET],$H$8)","v":0},{"$f":"IFERROR(AVERAGEIFS(Information[Bränsleförbrukning],Information[DATUM],G22,Information[AKTIVITET],$I$8),NA())","v":{"$error":"#N/A"}},{"$f":"IFERROR(AVERAGEIFS(Information[kr per mil],Information[DATUM],G22,Information[AKTIVITET],$J$8),NA())","v":{"$error":"#N/A"}}]
[{"$nulls":5},14,"2012-05-14",{"$f":"SUMIFS(Information[MIL],Information[DATUM],G23,Information[AKTIVITET],$H$8)","v":0},{"$f":"IFERROR(AVERAGEIFS(Information[Bränsleförbrukning],Information[DATUM],G23,Information[AKTIVITET],$I$8),NA())","v":{"$error":"#N/A"}},{"$f":"IFERROR(AVERAGEIFS(Information[kr per mil],Information[DATUM],G23,Information[AKTIVITET],$J$8),NA())","v":{"$error":"#N/A"}}]
[{"$nulls":5},15,"2012-05-15",{"$f":"SUMIFS(Information[MIL],Information[DATUM],G24,Information[AKTIVITET],$H$8)","v":0},{"$f":"IFERROR(AVERAGEIFS(Information[Bränsleförbrukning],Information[DATUM],G24,Information[AKTIVITET],$I$8),NA())","v":{"$error":"#N/A"}},{"$f":"IFERROR(AVERAGEIFS(Information[kr per mil],Information[DATUM],G24,Information[AKTIVITET],$J$8),NA())","v":{"$error":"#N/A"}}]
[{"$nulls":5},16,"2012-05-16",{"$f":"SUMIFS(Information[MIL],Information[DATUM],G25,Information[AKTIVITET],$H$8)","v":0},{"$f":"IFERROR(AVERAGEIFS(Information[Bränsleförbrukning],Information[DATUM],G25,Information[AKTIVITET],$I$8),NA())","v":{"$error":"#N/A"}},{"$f":"IFERROR(AVERAGEIFS(Information[kr per mil],Information[DATUM],G25,Information[AKTIVITET],$J$8),NA())","v":{"$error":"#N/A"}}]
[{"$nulls":5},17,"2012-05-17",{"$f":"SUMIFS(Information[MIL],Information[DATUM],G26,Information[AKTIVITET],$H$8)","v":0},{"$f":"IFERROR(AVERAGEIFS(Information[Bränsleförbrukning],Information[DATUM],G26,Information[AKTIVITET],$I$8),NA())","v":{"$error":"#N/A"}},{"$f":"IFERROR(AVERAGEIFS(Information[kr per mil],Information[DATUM],G26,Information[AKTIVITET],$J$8),NA())","v":{"$error":"#N/A"}}]
[{"$nulls":5},18,"2012-05-18",{"$f":"SUMIFS(Information[MIL],Information[DATUM],G27,Information[AKTIVITET],$H$8)","v":0},{"$f":"IFERROR(AVERAGEIFS(Information[Bränsleförbrukning],Information[DATUM],G27,Information[AKTIVITET],$I$8),NA())","v":{"$error":"#N/A"}},{"$f":"IFERROR(AVERAGEIFS(Information[kr per mil],Information[DATUM],G27,Information[AKTIVITET],$J$8),NA())","v":{"$error":"#N/A"}}]
[{"$nulls":5},19,"2012-05-19",{"$f":"SUMIFS(Information[MIL],Information[DATUM],G28,Information[AKTIVITET],$H$8)","v":0},{"$f":"IFERROR(AVERAGEIFS(Information[Bränsleförbrukning],Information[DATUM],G28,Information[AKTIVITET],$I$8),NA())","v":{"$error":"#N/A"}},{"$f":"IFERROR(AVERAGEIFS(Information[kr per mil],Information[DATUM],G28,Information[AKTIVITET],$J$8),NA())","v":{"$error":"#N/A"}}]
[{"$nulls":5},20,"2012-05-20",{"$f":"SUMIFS(Information[MIL],Information[DATUM],G29,Information[AKTIVITET],$H$8)","v":0},{"$f":"IFERROR(AVERAGEIFS(Information[Bränsleförbrukning],Information[DATUM],G29,Information[AKTIVITET],$I$8),NA())","v":{"$error":"#N/A"}},{"$f":"IFERROR(AVERAGEIFS(Information[kr per mil],Information[DATUM],G29,Information[AKTIVITET],$J$8),NA())","v":{"$error":"#N/A"}}]
[{"$nulls":5},21,"2012-05-21",{"$f":"SUMIFS(Information[MIL],Information[DATUM],G30,Information[AKTIVITET],$H$8)","v":0},{"$f":"IFERROR(AVERAGEIFS(Information[Bränsleförbrukning],Information[DATUM],G30,Information[AKTIVITET],$I$8),NA())","v":{"$error":"#N/A"}},{"$f":"IFERROR(AVERAGEIFS(Information[kr per mil],Information[DATUM],G30,Information[AKTIVITET],$J$8),NA())","v":{"$error":"#N/A"}}]
[{"$nulls":5},22,"2012-05-22",{"$f":"SUMIFS(Information[MIL],Information[DATUM],G31,Information[AKTIVITET],$H$8)","v":0},{"$f":"IFERROR(AVERAGEIFS(Information[Bränsleförbrukning],Information[DATUM],G31,Information[AKTIVITET],$I$8),NA())","v":{"$error":"#N/A"}},{"$f":"IFERROR(AVERAGEIFS(Information[kr per mil],Information[DATUM],G31,Information[AKTIVITET],$J$8),NA())","v":{"$error":"#N/A"}}]
[{"$nulls":5},23,"2012-05-23",{"$f":"SUMIFS(Information[MIL],Information[DATUM],G32,Information[AKTIVITET],$H$8)","v":0},{"$f":"IFERROR(AVERAGEIFS(Information[Bränsleförbrukning],Information[DATUM],G32,Information[AKTIVITET],$I$8),NA())","v":{"$error":"#N/A"}},{"$f":"IFERROR(AVERAGEIFS(Information[kr per mil],Information[DATUM],G32,Information[AKTIVITET],$J$8),NA())","v":{"$error":"#N/A"}}]
[{"$nulls":5},24,"2012-05-24",{"$f":"SUMIFS(Information[MIL],Information[DATUM],G33,Information[AKTIVITET],$H$8)","v":0},{"$f":"IFERROR(AVERAGEIFS(Information[Bränsleförbrukning],Information[DATUM],G33,Information[AKTIVITET],$I$8),NA())","v":{"$error":"#N/A"}},{"$f":"IFERROR(AVERAGEIFS(Information[kr per mil],Information[DATUM],G33,Information[AKTIVITET],$J$8),NA())","v":{"$error":"#N/A"}}]
[{"$nulls":5},25,"2012-05-25",{"$f":"SUMIFS(Information[MIL],Information[DATUM],G34,Information[AKTIVITET],$H$8)","v":0},{"$f":"IFERROR(AVERAGEIFS(Information[Bränsleförbrukning],Information[DATUM],G34,Information[AKTIVITET],$I$8),NA())","v":{"$error":"#N/A"}},{"$f":"IFERROR(AVERAGEIFS(Information[kr per mil],Information[DATUM],G34,Information[AKTIVITET],$J$8),NA())","v":{"$error":"#N/A"}}]
[{"$nulls":5},26,"2012-05-26",{"$f":"SUMIFS(Information[MIL],Information[DATUM],G35,Information[AKTIVITET],$H$8)","v":0},{"$f":"IFERROR(AVERAGEIFS(Information[Bränsleförbrukning],Information[DATUM],G35,Information[AKTIVITET],$I$8),NA())","v":{"$error":"#N/A"}},{"$f":"IFERROR(AVERAGEIFS(Information[kr per mil],Information[DATUM],G35,Information[AKTIVITET],$J$8),NA())","v":{"$error":"#N/A"}}]
[{"$nulls":5},27,"2012-05-27",{"$f":"SUMIFS(Information[MIL],Information[DATUM],G36,Information[AKTIVITET],$H$8)","v":0},{"$f":"IFERROR(AVERAGEIFS(Information[Bränsleförbrukning],Information[DATUM],G36,Information[AKTIVITET],$I$8),NA())","v":{"$error":"#N/A"}},{"$f":"IFERROR(AVERAGEIFS(Information[kr per mil],Information[DATUM],G36,Information[AKTIVITET],$J$8),NA())","v":{"$error":"#N/A"}}]
[{"$nulls":5},28,"2012-05-28",{"$f":"SUMIFS(Information[MIL],Information[DATUM],G37,Information[AKTIVITET],$H$8)","v":0},{"$f":"IFERROR(AVERAGEIFS(Information[Bränsleförbrukning],Information[DATUM],G37,Information[AKTIVITET],$I$8),NA())","v":{"$error":"#N/A"}},{"$f":"IFERROR(AVERAGEIFS(Information[kr per mil],Information[DATUM],G37,Information[AKTIVITET],$J$8),NA())","v":{"$error":"#N/A"}}]
[{"$nulls":5},29,"2012-05-29",{"$f":"SUMIFS(Information[MIL],Information[DATUM],G38,Information[AKTIVITET],$H$8)","v":0},{"$f":"IFERROR(AVERAGEIFS(Information[Bränsleförbrukning],Information[DATUM],G38,Information[AKTIVITET],$I$8),NA())","v":{"$error":"#N/A"}},{"$f":"IFERROR(AVERAGEIFS(Information[kr per mil],Information[DATUM],G38,Information[AKTIVITET],$J$8),NA())","v":{"$error":"#N/A"}}]
[{"$nulls":5},30,"2012-05-30",{"$f":"SUMIFS(Information[MIL],Information[DATUM],G39,Information[AKTIVITET],$H$8)","v":0},{"$f":"IFERROR(AVERAGEIFS(Information[Bränsleförbrukning],Information[DATUM],G39,Information[AKTIVITET],$I$8),NA())","v":{"$error":"#N/A"}},{"$f":"IFERROR(AVERAGEIFS(Information[kr per mil],Information[DATUM],G39,Information[AKTIVITET],$J$8),NA())","v":{"$error":"#N/A"}}]
[{"$nulls":5},31,"2012-05-31",{"$f":"SUMIFS(Information[MIL],Information[DATUM],G40,Information[AKTIVITET],$H$8)","v":0},{"$f":"IFERROR(AVERAGEIFS(Information[Bränsleförbrukning],Information[DATUM],G40,Information[AKTIVITET],$I$8),NA())","v":{"$error":"#N/A"}},{"$f":"IFERROR(AVERAGEIFS(Information[kr per mil],Information[DATUM],G40,Information[AKTIVITET],$J$8),NA())","v":{"$error":"#N/A"}}]
[{"$nulls":5},32,"2012-06-01",{"$f":"SUMIFS(Information[MIL],Information[DATUM],G41,Information[AKTIVITET],$H$8)","v":0},{"$f":"IFERROR(AVERAGEIFS(Information[Bränsleförbrukning],Information[DATUM],G41,Information[AKTIVITET],$I$8),NA())","v":{"$error":"#N/A"}},{"$f":"IFERROR(AVERAGEIFS(Information[kr per mil],Information[DATUM],G41,Information[AKTIVITET],$J$8),NA())","v":{"$error":"#N/A"}}]
[{"$nulls":5},33,"2012-06-02",{"$f":"SUMIFS(Information[MIL],Information[DATUM],G42,Information[AKTIVITET],$H$8)","v":0},{"$f":"IFERROR(AVERAGEIFS(Information[Bränsleförbrukning],Information[DATUM],G42,Information[AKTIVITET],$I$8),NA())","v":{"$error":"#N/A"}},{"$f":"IFERROR(AVERAGEIFS(Information[kr per mil],Information[DATUM],G42,Information[AKTIVITET],$J$8),NA())","v":{"$error":"#N/A"}}]
[{"$nulls":5},34,{"$f":"G42+1","v":"2012-06-03"},{"$f":"SUMIFS(Information[MIL],Information[DATUM],G43,Information[AKTIVITET],$H$8)","v":0},{"$f":"IFERROR(AVERAGEIFS(Information[Bränsleförbrukning],Information[DATUM],G43,Information[AKTIVITET],$I$8),NA())","v":{"$error":"#N/A"}},{"$f":"IFERROR(AVERAGEIFS(Information[kr per mil],Information[DATUM],G43,Information[AKTIVITET],$J$8),NA())","v":{"$error":"#N/A"}}]
[{"$nulls":5},35,"2012-06-04",{"$f":"SUMIFS(Information[MIL],Information[DATUM],G44,Information[AKTIVITET],$H$8)","v":0},{"$f":"IFERROR(AVERAGEIFS(Information[Bränsleförbrukning],Information[DATUM],G44,Information[AKTIVITET],$I$8),NA())","v":{"$error":"#N/A"}},{"$f":"IFERROR(AVERAGEIFS(Information[kr per mil],Information[DATUM],G44,Information[AKTIVITET],$J$8),NA())","v":{"$error":"#N/A"}}]
[{"$nulls":5},36,"2012-06-05",{"$f":"SUMIFS(Information[MIL],Information[DATUM],G45,Information[AKTIVITET],$H$8)","v":0},{"$f":"IFERROR(AVERAGEIFS(Information[Bränsleförbrukning],Information[DATUM],G45,Information[AKTIVITET],$I$8),NA())","v":{"$error":"#N/A"}},{"$f":"IFERROR(AVERAGEIFS(Information[kr per mil],Information[DATUM],G45,Information[AKTIVITET],$J$8),NA())","v":{"$error":"#N/A"}}]
[{"$nulls":5},37,"2012-06-06",{"$f":"SUMIFS(Information[MIL],Information[DATUM],G46,Information[AKTIVITET],$H$8)","v":0},{"$f":"IFERROR(AVERAGEIFS(Information[Bränsleförbrukning],Information[DATUM],G46,Information[AKTIVITET],$I$8),NA())","v":{"$error":"#N/A"}},{"$f":"IFERROR(AVERAGEIFS(Information[kr per mil],Information[DATUM],G46,Information[AKTIVITET],$J$8),NA())","v":{"$error":"#N/A"}}]
[{"$nulls":5},38,"2012-06-07",{"$f":"SUMIFS(Information[MIL],Information[DATUM],G47,Information[AKTIVITET],$H$8)","v":0},{"$f":"IFERROR(AVERAGEIFS(Information[Bränsleförbrukning],Information[DATUM],G47,Information[AKTIVITET],$I$8),NA())","v":{"$error":"#N/A"}},{"$f":"IFERROR(AVERAGEIFS(Information[kr per mil],Information[DATUM],G47,Information[AKTIVITET],$J$8),NA())","v":{"$error":"#N/A"}}]
[{"$nulls":5},39,"2012-06-08",{"$f":"SUMIFS(Information[MIL],Information[DATUM],G48,Information[AKTIVITET],$H$8)","v":0},{"$f":"IFERROR(AVERAGEIFS(Information[Bränsleförbrukning],Information[DATUM],G48,Information[AKTIVITET],$I$8),NA())","v":{"$error":"#N/A"}},{"$f":"IFERROR(AVERAGEIFS(Information[kr per mil],Information[DATUM],G48,Information[AKTIVITET],$J$8),NA())","v":{"$error":"#N/A"}}]
[{"$nulls":5},40,"2012-06-09",{"$f":"SUMIFS(Information[MIL],Information[DATUM],G49,Information[AKTIVITET],$H$8)","v":0},{"$f":"IFERROR(AVERAGEIFS(Information[Bränsleförbrukning],Information[DATUM],G49,Information[AKTIVITET],$I$8),NA())","v":{"$error":"#N/A"}},{"$f":"IFERROR(AVERAGEIFS(Information[kr per mil],Information[DATUM],G49,Information[AKTIVITET],$J$8),NA())","v":{"$error":"#N/A"}}]
[{"$nulls":5},41,"2012-06-10",{"$f":"SUMIFS(Information[MIL],Information[DATUM],G50,Information[AKTIVITET],$H$8)","v":0},{"$f":"IFERROR(AVERAGEIFS(Information[Bränsleförbrukning],Information[DATUM],G50,Information[AKTIVITET],$I$8),NA())","v":{"$error":"#N/A"}},{"$f":"IFERROR(AVERAGEIFS(Information[kr per mil],Information[DATUM],G50,Information[AKTIVITET],$J$8),NA())","v":{"$error":"#N/A"}}]
[{"$nulls":5},42,"2012-06-11",{"$f":"SUMIFS(Information[MIL],Information[DATUM],G51,Information[AKTIVITET],$H$8)","v":0},{"$f":"IFERROR(AVERAGEIFS(Information[Bränsleförbrukning],Information[DATUM],G51,Information[AKTIVITET],$I$8),NA())","v":{"$error":"#N/A"}},{"$f":"IFERROR(AVERAGEIFS(Information[kr per mil],Information[DATUM],G51,Information[AKTIVITET],$J$8),NA())","v":{"$error":"#N/A"}}]
[{"$nulls":5},43,"2012-06-12",{"$f":"SUMIFS(Information[MIL],Information[DATUM],G52,Information[AKTIVITET],$H$8)","v":0},{"$f":"IFERROR(AVERAGEIFS(Information[Bränsleförbrukning],Information[DATUM],G52,Information[AKTIVITET],$I$8),NA())","v":{"$error":"#N/A"}},{"$f":"IFERROR(AVERAGEIFS(Information[kr per mil],Information[DATUM],G52,Information[AKTIVITET],$J$8),NA())","v":{"$error":"#N/A"}}]
[{"$nulls":5},44,"2012-06-13",{"$f":"SUMIFS(Information[MIL],Information[DATUM],G53,Information[AKTIVITET],$H$8)","v":0},{"$f":"IFERROR(AVERAGEIFS(Information[Bränsleförbrukning],Information[DATUM],G53,Information[AKTIVITET],$I$8),NA())","v":{"$error":"#N/A"}},{"$f":"IFERROR(AVERAGEIFS(Information[kr per mil],Information[DATUM],G53,Information[AKTIVITET],$J$8),NA())","v":{"$error":"#N/A"}}]
[{"$nulls":5},45,"2012-06-14",{"$f":"SUMIFS(Information[MIL],Information[DATUM],G54,Information[AKTIVITET],$H$8)","v":0},{"$f":"IFERROR(AVERAGEIFS(Information[Bränsleförbrukning],Information[DATUM],G54,Information[AKTIVITET],$I$8),NA())","v":{"$error":"#N/A"}},{"$f":"IFERROR(AVERAGEIFS(Information[kr per mil],Information[DATUM],G54,Information[AKTIVITET],$J$8),NA())","v":{"$error":"#N/A"}}]
[{"$nulls":5},46,"2012-06-15",{"$f":"SUMIFS(Information[MIL],Information[DATUM],G55,Information[AKTIVITET],$H$8)","v":0},{"$f":"IFERROR(AVERAGEIFS(Information[Bränsleförbrukning],Information[DATUM],G55,Information[AKTIVITET],$I$8),NA())","v":{"$error":"#N/A"}},{"$f":"IFERROR(AVERAGEIFS(Information[kr per mil],Information[DATUM],G55,Information[AKTIVITET],$J$8),NA())","v":{"$error":"#N/A"}}]
[{"$nulls":5},47,"2012-06-16",{"$f":"SUMIFS(Information[MIL],Information[DATUM],G56,Information[AKTIVITET],$H$8)","v":0},{"$f":"IFERROR(AVERAGEIFS(Information[Bränsleförbrukning],Information[DATUM],G56,Information[AKTIVITET],$I$8),NA())","v":{"$error":"#N/A"}},{"$f":"IFERROR(AVERAGEIFS(Information[kr per mil],Information[DATUM],G56,Information[AKTIVITET],$J$8),NA())","v":{"$error":"#N/A"}}]
[{"$nulls":5},48,"2012-06-17",{"$f":"SUMIFS(Information[MIL],Information[DATUM],G57,Information[AKTIVITET],$H$8)","v":0},{"$f":"IFERROR(AVERAGEIFS(Information[Bränsleförbrukning],Information[DATUM],G57,Information[AKTIVITET],$I$8),NA())","v":{"$error":"#N/A"}},{"$f":"IFERROR(AVERAGEIFS(Information[kr per mil],Information[DATUM],G57,Information[AKTIVITET],$J$8),NA())","v":{"$error":"#N/A"}}]
[{"$nulls":5},49,"2012-06-18",{"$f":"SUMIFS(Information[MIL],Information[DATUM],G58,Information[AKTIVITET],$H$8)","v":0},{"$f":"IFERROR(AVERAGEIFS(Information[Bränsleförbrukning],Information[DATUM],G58,Information[AKTIVITET],$I$8),NA())","v":{"$error":"#N/A"}},{"$f":"IFERROR(AVERAGEIFS(Information[kr per mil],Information[DATUM],G58,Information[AKTIVITET],$J$8),NA())","v":{"$error":"#N/A"}}]
[{"$nulls":5},50,"2012-06-19",{"$f":"SUMIFS(Information[MIL],Information[DATUM],G59,Information[AKTIVITET],$H$8)","v":0},{"$f":"IFERROR(AVERAGEIFS(Information[Bränsleförbrukning],Information[DATUM],G59,Information[AKTIVITET],$I$8),NA())","v":{"$error":"#N/A"}},{"$f":"IFERROR(AVERAGEIFS(Information[kr per mil],Information[DATUM],G59,Information[AKTIVITET],$J$8),NA())","v":{"$error":"#N/A"}}]
[{"$nulls":5},51,"2012-06-20",{"$f":"SUMIFS(Information[MIL],Information[DATUM],G60,Information[AKTIVITET],$H$8)","v":0},{"$f":"IFERROR(AVERAGEIFS(Information[Bränsleförbrukning],Information[DATUM],G60,Information[AKTIVITET],$I$8),NA())","v":{"$error":"#N/A"}},{"$f":"IFERROR(AVERAGEIFS(Information[kr per mil],Information[DATUM],G60,Information[AKTIVITET],$J$8),NA())","v":{"$error":"#N/A"}}]
[{"$nulls":5},52,"2012-06-21",{"$f":"SUMIFS(Information[MIL],Information[DATUM],G61,Information[AKTIVITET],$H$8)","v":0},{"$f":"IFERROR(AVERAGEIFS(Information[Bränsleförbrukning],Information[DATUM],G61,Information[AKTIVITET],$I$8),NA())","v":{"$error":"#N/A"}},{"$f":"IFERROR(AVERAGEIFS(Information[kr per mil],Information[DATUM],G61,Information[AKTIVITET],$J$8),NA())","v":{"$error":"#N/A"}}]
[{"$nulls":5},53,"2012-06-22",{"$f":"SUMIFS(Information[MIL],Information[DATUM],G62,Information[AKTIVITET],$H$8)","v":0},{"$f":"IFERROR(AVERAGEIFS(Information[Bränsleförbrukning],Information[DATUM],G62,Information[AKTIVITET],$I$8),NA())","v":{"$error":"#N/A"}},{"$f":"IFERROR(AVERAGEIFS(Information[kr per mil],Information[DATUM],G62,Information[AKTIVITET],$J$8),NA())","v":{"$error":"#N/A"}}]
[{"$nulls":5},54,"2012-06-23",{"$f":"SUMIFS(Information[MIL],Information[DATUM],G63,Information[AKTIVITET],$H$8)","v":0},{"$f":"IFERROR(AVERAGEIFS(Information[Bränsleförbrukning],Information[DATUM],G63,Information[AKTIVITET],$I$8),NA())","v":{"$error":"#N/A"}},{"$f":"IFERROR(AVERAGEIFS(Information[kr per mil],Information[DATUM],G63,Information[AKTIVITET],$J$8),NA())","v":{"$error":"#N/A"}}]
[{"$nulls":5},55,"2012-06-24",{"$f":"SUMIFS(Information[MIL],Information[DATUM],G64,Information[AKTIVITET],$H$8)","v":0},{"$f":"IFERROR(AVERAGEIFS(Information[Bränsleförbrukning],Information[DATUM],G64,Information[AKTIVITET],$I$8),NA())","v":{"$error":"#N/A"}},{"$f":"IFERROR(AVERAGEIFS(Information[kr per mil],Information[DATUM],G64,Information[AKTIVITET],$J$8),NA())","v":{"$error":"#N/A"}}]
[{"$nulls":5},56,"2012-06-25",{"$f":"SUMIFS(Information[MIL],Information[DATUM],G65,Information[AKTIVITET],$H$8)","v":0},{"$f":"IFERROR(AVERAGEIFS(Information[Bränsleförbrukning],Information[DATUM],G65,Information[AKTIVITET],$I$8),NA())","v":{"$error":"#N/A"}},{"$f":"IFERROR(AVERAGEIFS(Information[kr per mil],Information[DATUM],G65,Information[AKTIVITET],$J$8),NA())","v":{"$error":"#N/A"}}]
[{"$nulls":5},57,"2012-06-26",{"$f":"SUMIFS(Information[MIL],Information[DATUM],G66,Information[AKTIVITET],$H$8)","v":0},{"$f":"IFERROR(AVERAGEIFS(Information[Bränsleförbrukning],Information[DATUM],G66,Information[AKTIVITET],$I$8),NA())","v":{"$error":"#N/A"}},{"$f":"IFERROR(AVERAGEIFS(Information[kr per mil],Information[DATUM],G66,Information[AKTIVITET],$J$8),NA())","v":{"$error":"#N/A"}}]
[{"$nulls":5},58,"2012-06-27",{"$f":"SUMIFS(Information[MIL],Information[DATUM],G67,Information[AKTIVITET],$H$8)","v":0},{"$f":"IFERROR(AVERAGEIFS(Information[Bränsleförbrukning],Information[DATUM],G67,Information[AKTIVITET],$I$8),NA())","v":{"$error":"#N/A"}},{"$f":"IFERROR(AVERAGEIFS(Information[kr per mil],Information[DATUM],G67,Information[AKTIVITET],$J$8),NA())","v":{"$error":"#N/A"}}]
[{"$nulls":5},59,"2012-06-28",{"$f":"SUMIFS(Information[MIL],Information[DATUM],G68,Information[AKTIVITET],$H$8)","v":0},{"$f":"IFERROR(AVERAGEIFS(Information[Bränsleförbrukning],Information[DATUM],G68,Information[AKTIVITET],$I$8),NA())","v":{"$error":"#N/A"}},{"$f":"IFERROR(AVERAGEIFS(Information[kr per mil],Information[DATUM],G68,Information[AKTIVITET],$J$8),NA())","v":{"$error":"#N/A"}}]
[{"$nulls":5},60,"2012-06-29",{"$f":"SUMIFS(Information[MIL],Information[DATUM],G69,Information[AKTIVITET],$H$8)","v":0},{"$f":"IFERROR(AVERAGEIFS(Information[Bränsleförbrukning],Information[DATUM],G69,Information[AKTIVITET],$I$8),NA())","v":{"$error":"#N/A"}},{"$f":"IFERROR(AVERAGEIFS(Information[kr per mil],Information[DATUM],G69,Information[AKTIVITET],$J$8),NA())","v":{"$error":"#N/A"}}]